[Event "*** Titled Tuesday Blitz"]
[Site "Chess.com"]
[Date "2020.04.14"]
[Round "3"]
[White "jposthuma"]
[Black "Oligan22"]
[Result "0-1"]
[WhiteElo "2584"]
[BlackElo "2395"]
[TimeControl "180+1"]
[EndTime "10:27:39 PDT"]
[Termination "Oligan22 won on time"]

1. d4 {[%clk 0:03:00.9]} 1... d5 {[%clk 0:02:59.6]} 2. c4 {[%clk 0:03:01.1]}
2... dxc4 {[%clk 0:03:00.5]} 3. Nf3 {[%clk 0:03:01.1]} 3... a6 {[%clk
0:03:00.2]} 4. a4 {[%clk 0:02:54.9]} 4... Nf6 {[%clk 0:02:57.4]} 5. e3 {[%clk
0:02:48.4]} 5... e6 {[%clk 0:02:57.6]} 6. Bxc4 {[%clk 0:02:47.8]} 6... c5 {[%clk
0:02:58.3]} 7. O-O {[%clk 0:02:43.5]} 7... Nc6 {[%clk 0:02:58.5]} 8. Nc3 {[%clk
0:02:41.6]} 8... Be7 {[%clk 0:02:58]} 9. h3 {[%clk 0:01:47.8]} 9... O-O {[%clk
0:02:56.9]} 10. Qe2 {[%clk 0:01:25.1]} 10... Qc7 {[%clk 0:02:56.6]} 11. dxc5
{[%clk 0:01:18.3]} 11... Bxc5 {[%clk 0:02:56.2]} 12. e4 {[%clk 0:01:18.2]} 12...
Nd4 {[%clk 0:02:39.9]} 13. Nxd4 {[%clk 0:01:13.5]} 13... Bxd4 {[%clk 0:02:40.8]}
14. Rd1 {[%clk 0:01:03.9]} 14... Qc5 {[%clk 0:02:07.3]} 15. Ba2 {[%clk
0:00:39.8]} 15... b6 {[%clk 0:01:56.8]} 16. Bf4 {[%clk 0:00:30.6]} 16... e5
{[%clk 0:01:54]} 17. Bg5 {[%clk 0:00:28.2]} 17... Be6 {[%clk 0:01:45]} 18. Bxf6
{[%clk 0:00:20.6]} 18... gxf6 {[%clk 0:01:45.9]} 19. Bxe6 {[%clk 0:00:20]} 19...
fxe6 {[%clk 0:01:45.5]} 20. Qg4+ {[%clk 0:00:19]} 20... Kh8 {[%clk 0:01:30.6]}
21. Qxe6 {[%clk 0:00:18.9]} 21... Bxf2+ {[%clk 0:01:30]} 22. Kh1 {[%clk
0:00:19.3]} 22... Rae8 {[%clk 0:01:23.8]} 23. Qf5 {[%clk 0:00:18.9]} 23... Bd4
{[%clk 0:01:10.1]} 24. Nd5 {[%clk 0:00:18.6]} 24... Qc6 {[%clk 0:01:01.6]} 25.
Rac1 {[%clk 0:00:14.4]} 25... Qe6 {[%clk 0:01:01.4]} 26. Qxe6 {[%clk 0:00:10.1]}
26... Rxe6 {[%clk 0:01:02.3]} 27. b3 {[%clk 0:00:10.5]} 27... f5 {[%clk
0:00:58.4]} 28. Nc7 {[%clk 0:00:04.3]} 28... Rg6 {[%clk 0:00:46.1]} 29. exf5
{[%clk 0:00:04.2]} 29... Rxf5 {[%clk 0:00:47]} 30. Nxa6 {[%clk 0:00:03.1]} 30...
Rf2 {[%clk 0:00:44.9]} 31. Rc8+ {[%clk 0:00:01.9]} 31... Kg7 {[%clk 0:00:44]}
0-1

[Event "*** Titled Tuesday Blitz"]
[Site "Chess.com"]
[Date "2020.04.14"]
[Round "3"]
[White "Ruchess27"]
[Black "csati17"]
[Result "0-1"]
[WhiteElo "2264"]
[BlackElo "2536"]
[TimeControl "180+1"]
[EndTime "10:27:39 PDT"]
[Termination "csati17 won by resignation"]

1. d4 {[%clk 0:03:00.9]} 1... Nf6 {[%clk 0:03:00]} 2. c4 {[%clk 0:03:00.2]} 2...
g6 {[%clk 0:02:59.9]} 3. Nf3 {[%clk 0:03:00]} 3... Bg7 {[%clk 0:02:59.7]} 4. g3
{[%clk 0:03:00.4]} 4... O-O {[%clk 0:02:59.9]} 5. Bg2 {[%clk 0:03:00.9]} 5... b6
{[%clk 0:02:55.3]} 6. O-O {[%clk 0:02:51.3]} 6... Bb7 {[%clk 0:02:55.7]} 7. Nc3
{[%clk 0:02:50.3]} 7... Ne4 {[%clk 0:02:54]} 8. Qc2 {[%clk 0:02:28.4]} 8... Nxc3
{[%clk 0:02:51.9]} 9. Qxc3 {[%clk 0:02:28.7]} 9... c5 {[%clk 0:02:44.8]} 10. Be3
{[%clk 0:02:17.6]} 10... Nc6 {[%clk 0:02:14.8]} 11. Qd2 {[%clk 0:02:11.8]} 11...
cxd4 {[%clk 0:01:29.7]} 12. Nxd4 {[%clk 0:02:09]} 12... Qc8 {[%clk 0:01:29.7]}
13. b3 {[%clk 0:02:00.2]} 13... Ne5 {[%clk 0:01:19.7]} 14. h3 {[%clk 0:01:48.2]}
14... Bxg2 {[%clk 0:01:16.6]} 15. Kxg2 {[%clk 0:01:49.1]} 15... Qb7+ {[%clk
0:01:16.6]} 16. Kg1 {[%clk 0:01:42.5]} 16... d5 {[%clk 0:01:10.5]} 17. cxd5
{[%clk 0:01:02.7]} 17... Qxd5 {[%clk 0:01:05]} 18. Rad1 {[%clk 0:01:01.9]} 18...
Qb7 {[%clk 0:00:45.4]} 19. Qb4 {[%clk 0:00:51.9]} 19... Rfd8 {[%clk 0:00:43.8]}
20. f4 {[%clk 0:00:48.1]} 20... Nc6 {[%clk 0:00:42.3]} 21. Nxc6 {[%clk
0:00:47.8]} 21... Qxc6 {[%clk 0:00:43.2]} 22. Bd4 {[%clk 0:00:32]} 22... a5
{[%clk 0:00:31.8]} 23. Qxe7 {[%clk 0:00:13.7]} 23... Rxd4 {[%clk 0:00:28.3]} 24.
Rxd4 {[%clk 0:00:11.8]} 24... Bxd4+ {[%clk 0:00:29.2]} 25. e3 {[%clk 0:00:12.2]}
25... Re8 {[%clk 0:00:28.2]} 0-1

[Event "*** Titled Tuesday Blitz"]
[Site "Chess.com"]
[Date "2020.04.14"]
[Round "3"]
[White "chiwii"]
[Black "trickytock"]
[Result "0-1"]
[WhiteElo "2227"]
[BlackElo "2509"]
[TimeControl "180+1"]
[EndTime "10:27:39 PDT"]
[Termination "trickytock won by resignation"]

1. e4 {[%clk 0:02:52.7]} 1... c5 {[%clk 0:02:59.3]} 2. Nf3 {[%clk 0:02:50.3]}
2... Nc6 {[%clk 0:02:59.9]} 3. d4 {[%clk 0:02:49.6]} 3... cxd4 {[%clk
0:03:00.7]} 4. Nxd4 {[%clk 0:02:50.5]} 4... Nf6 {[%clk 0:03:01]} 5. Nc3 {[%clk
0:02:50.1]} 5... d6 {[%clk 0:03:01.6]} 6. Be2 {[%clk 0:02:50]} 6... g6 {[%clk
0:03:01.2]} 7. O-O {[%clk 0:02:49.8]} 7... Bg7 {[%clk 0:03:00.9]} 8. Be3 {[%clk
0:02:49.9]} 8... O-O {[%clk 0:03:00.3]} 9. Qd2 {[%clk 0:02:49.5]} 9... Bd7
{[%clk 0:02:53.1]} 10. Rfd1 {[%clk 0:02:45.8]} 10... Nxd4 {[%clk 0:02:51.7]} 11.
Bxd4 {[%clk 0:02:45.4]} 11... Bc6 {[%clk 0:02:52.6]} 12. f3 {[%clk 0:02:45.5]}
12... Re8 {[%clk 0:02:52]} 13. a4 {[%clk 0:02:42.9]} 13... a6 {[%clk 0:02:44.3]}
14. a5 {[%clk 0:02:41.2]} 14... Qd7 {[%clk 0:02:43.7]} 15. Nd5 {[%clk
0:02:34.1]} 15... Bxd5 {[%clk 0:02:38.7]} 16. exd5 {[%clk 0:02:35]} 16... Rac8
{[%clk 0:02:38.3]} 17. c4 {[%clk 0:02:34.6]} 17... Nh5 {[%clk 0:02:28.8]} 18. b4
{[%clk 0:02:28.2]} 18... Qf5 {[%clk 0:02:21.6]} 19. g4 {[%clk 0:02:24.3]} 19...
Bxd4+ {[%clk 0:02:16.9]} 20. Qxd4 {[%clk 0:02:25.2]} 20... Qg5 {[%clk
0:02:17.6]} 21. h4 {[%clk 0:02:17.4]} 21... Nf4 {[%clk 0:02:14.2]} 22. hxg5
{[%clk 0:02:16.3]} 22... Nxe2+ {[%clk 0:02:14]} 23. Kg2 {[%clk 0:02:16.3]} 23...
Nxd4 {[%clk 0:02:14.9]} 24. Rxd4 {[%clk 0:02:16.1]} 24... Rc7 {[%clk 0:02:14.7]}
25. Re1 {[%clk 0:02:11.3]} 25... Kf8 {[%clk 0:02:13.9]} 26. Kf2 {[%clk
0:02:08.6]} 26... Rec8 {[%clk 0:02:10.2]} 27. Rc1 {[%clk 0:02:08.6]} 27... Rb8
{[%clk 0:02:06.9]} 28. Ke2 {[%clk 0:02:03.4]} 28... b6 {[%clk 0:01:55.3]} 29.
Kd3 {[%clk 0:01:55.9]} 29... bxa5 {[%clk 0:01:54.7]} 30. bxa5 {[%clk 0:01:56.8]}
30... Rc5 {[%clk 0:01:42.6]} 31. Ra1 {[%clk 0:01:51.5]} 31... Rb3+ {[%clk
0:01:41.2]} 32. Ke2 {[%clk 0:01:51.2]} 32... Rc3 {[%clk 0:01:41.3]} 33. Ra4
{[%clk 0:01:47.8]} 33... Rc7 {[%clk 0:01:39.8]} 34. f4 {[%clk 0:01:40.9]} 34...
Rb7 {[%clk 0:01:38.3]} 35. Kd2 {[%clk 0:01:39.3]} 35... Rg3 {[%clk 0:01:37]} 36.
Rd3 {[%clk 0:01:30.4]} 36... Rxg4 {[%clk 0:01:35.4]} 37. Rf3 {[%clk 0:01:22.5]}
37... Rb2+ {[%clk 0:01:33.5]} 38. Kc3 {[%clk 0:01:22.6]} 38... Rgg2 {[%clk
0:01:32.8]} 39. Kd4 {[%clk 0:01:08.5]} 39... Rbd2+ {[%clk 0:01:30.8]} 40. Kc3
{[%clk 0:01:06.9]} 40... Rdf2 {[%clk 0:01:29.6]} 41. Rh3 {[%clk 0:00:58.6]}
41... Kg7 {[%clk 0:01:19.4]} 42. c5 {[%clk 0:00:56.2]} 42... dxc5 {[%clk
0:01:18.5]} 43. Re4 {[%clk 0:00:55.9]} 43... Rd2 {[%clk 0:01:11.4]} 44. Rxe7
{[%clk 0:00:51.3]} 44... Rxd5 {[%clk 0:01:11.3]} 45. Ra7 {[%clk 0:00:51.3]}
45... Rf5 {[%clk 0:01:06]} 46. Kc4 {[%clk 0:00:50.7]} 46... Rf2 {[%clk
0:01:03.9]} 47. Rxa6 {[%clk 0:00:49.2]} 47... R2xf4+ {[%clk 0:01:03.6]} 48. Kc3
{[%clk 0:00:48.2]} 48... Rxg5 {[%clk 0:01:02.8]} 49. Rc6 {[%clk 0:00:48.1]}
49... Ra4 {[%clk 0:01:02.2]} 50. a6 {[%clk 0:00:47.8]} 50... c4 {[%clk
0:01:01.7]} 51. Rf3 {[%clk 0:00:45.2]} 51... Ra3+ {[%clk 0:00:59.5]} 52. Kxc4
{[%clk 0:00:44.5]} 52... Rxf3 {[%clk 0:01:00.4]} 53. a7 {[%clk 0:00:44.8]} 53...
Ra5 {[%clk 0:00:59.2]} 54. Rc7 {[%clk 0:00:45]} 0-1

[Event "*** Titled Tuesday Blitz"]
[Site "Chess.com"]
[Date "2020.04.14"]
[Round "3"]
[White "Nafania1"]
[Black "TheCount"]
[Result "0-1"]
[WhiteElo "2374"]
[BlackElo "2598"]
[TimeControl "180+1"]
[EndTime "10:27:41 PDT"]
[Termination "TheCount won on time"]

1. e4 {[%clk 0:02:59.1]} 1... e5 {[%clk 0:02:58]} 2. Nf3 {[%clk 0:02:58.8]} 2...
Nc6 {[%clk 0:02:57.9]} 3. Bb5 {[%clk 0:02:58.8]} 3... a6 {[%clk 0:02:54.8]} 4.
Ba4 {[%clk 0:02:58.7]} 4... Nf6 {[%clk 0:02:54.9]} 5. O-O {[%clk 0:02:57.1]}
5... Be7 {[%clk 0:02:53.9]} 6. Re1 {[%clk 0:02:52.9]} 6... b5 {[%clk 0:02:53.5]}
7. Bb3 {[%clk 0:02:53]} 7... d6 {[%clk 0:02:53.4]} 8. c3 {[%clk 0:02:52.6]} 8...
O-O {[%clk 0:02:51.1]} 9. d4 {[%clk 0:02:52.2]} 9... Bg4 {[%clk 0:02:45.5]} 10.
Be3 {[%clk 0:02:50.7]} 10... exd4 {[%clk 0:02:40.4]} 11. cxd4 {[%clk 0:02:49.9]}
11... Na5 {[%clk 0:02:40.8]} 12. h3 {[%clk 0:02:34.7]} 12... Bh5 {[%clk
0:02:38.3]} 13. Nbd2 {[%clk 0:02:33.1]} 13... c5 {[%clk 0:02:21.4]} 14. Bc2
{[%clk 0:01:59.8]} 14... Rc8 {[%clk 0:02:14.9]} 15. g4 {[%clk 0:01:46]} 15...
cxd4 {[%clk 0:02:13]} 16. Nxd4 {[%clk 0:01:42.5]} 16... Bg6 {[%clk 0:02:08.4]}
17. Rc1 {[%clk 0:01:24.7]} 17... Re8 {[%clk 0:01:58.3]} 18. Qf3 {[%clk
0:01:04.3]} 18... Nd7 {[%clk 0:01:54.9]} 19. Nf5 {[%clk 0:00:57.4]} 19... Ne5
{[%clk 0:01:53.6]} 20. Qg2 {[%clk 0:00:47.6]} 20... Nac4 {[%clk 0:01:38.6]} 21.
Nxc4 {[%clk 0:00:40.2]} 21... Nxc4 {[%clk 0:01:39.5]} 22. Nxe7+ {[%clk
0:00:31.9]} 22... Qxe7 {[%clk 0:01:38.9]} 23. Bd4 {[%clk 0:00:32.1]} 23... d5
{[%clk 0:01:31.9]} 24. e5 {[%clk 0:00:27]} 24... Nd2 {[%clk 0:01:06.9]} 25. Bxg6
{[%clk 0:00:24.9]} 25... hxg6 {[%clk 0:01:07.3]} 26. Rxc8 {[%clk 0:00:23.5]}
26... Rxc8 {[%clk 0:01:08.2]} 27. f4 {[%clk 0:00:10]} 27... Ne4 {[%clk
0:00:51.3]} 28. f5 {[%clk 0:00:04.6]} 28... Rc4 {[%clk 0:00:39.7]} 29. Rd1
{[%clk 0:00:03.6]} 29... Rxd4 {[%clk 0:00:36.2]} 30. Rxd4 {[%clk 0:00:03.3]}
30... Qc5 {[%clk 0:00:36.7]} 0-1

[Event "*** Titled Tuesday Blitz"]
[Site "Chess.com"]
[Date "2020.04.14"]
[Round "3"]
[White "JakeCarlosBanawa"]
[Black "avocadosheena"]
[Result "1-0"]
[WhiteElo "2359"]
[BlackElo "2147"]
[TimeControl "180+1"]
[EndTime "10:27:41 PDT"]
[Termination "JakeCarlosBanawa won by checkmate"]

1. d4 {[%clk 0:03:00.9]} 1... d5 {[%clk 0:02:54.1]} 2. c4 {[%clk 0:03:00.6]}
2... c6 {[%clk 0:02:52.6]} 3. Nc3 {[%clk 0:02:58.7]} 3... Nf6 {[%clk 0:02:47.8]}
4. Nf3 {[%clk 0:02:57.9]} 4... e6 {[%clk 0:02:44.3]} 5. Bg5 {[%clk 0:02:56.5]}
5... Nbd7 {[%clk 0:02:42.4]} 6. Qc2 {[%clk 0:02:45.1]} 6... Qa5 {[%clk
0:02:25.5]} 7. e3 {[%clk 0:02:25.9]} 7... Bb4 {[%clk 0:02:18.3]} 8. Bd3 {[%clk
0:02:24.5]} 8... Ne4 {[%clk 0:02:06.8]} 9. O-O {[%clk 0:02:02.6]} 9... Nxg5
{[%clk 0:01:51.7]} 10. Nxg5 {[%clk 0:01:59.7]} 10... dxc4 {[%clk 0:01:51.7]} 11.
Nxf7 {[%clk 0:01:34.5]} 11... Kxf7 {[%clk 0:01:47.3]} 12. Bxc4 {[%clk
0:01:20.1]} 12... Nf6 {[%clk 0:01:40.1]} 13. e4 {[%clk 0:01:15.5]} 13... Qg5
{[%clk 0:01:27]} 14. f4 {[%clk 0:01:14.8]} 14... Qg4 {[%clk 0:01:13.4]} 15. f5
{[%clk 0:01:14.2]} 15... Ke7 {[%clk 0:00:52.3]} 16. Rae1 {[%clk 0:01:02.1]}
16... Rd8 {[%clk 0:00:34.1]} 17. Qb3 {[%clk 0:00:58.7]} 17... Bxc3 {[%clk
0:00:31.8]} 18. bxc3 {[%clk 0:00:58.3]} 18... Nh5 {[%clk 0:00:11.6]} 19. fxe6
{[%clk 0:00:21.7]} 19... Nf4 {[%clk 0:00:10]} 20. Qb4+ {[%clk 0:00:19]} 20...
Ke8 {[%clk 0:00:09.5]} 21. g3 {[%clk 0:00:18.9]} 21... Nxe6 {[%clk 0:00:08.5]}
22. Bxe6 {[%clk 0:00:18.7]} 22... Bxe6 {[%clk 0:00:08.2]} 23. Rf8+ {[%clk
0:00:17.2]} 23... Kd7 {[%clk 0:00:08.4]} 24. Qxb7+ {[%clk 0:00:16.6]} 24... Kd6
{[%clk 0:00:08.7]} 25. e5+ {[%clk 0:00:15.8]} 25... Kd5 {[%clk 0:00:08.6]} 26.
Qb3# {[%clk 0:00:14.7]} 1-0

[Event "*** Titled Tuesday Blitz"]
[Site "Chess.com"]
[Date "2020.04.14"]
[Round "3"]
[White "tigra"]
[Black "vladimirdamjanovic"]
[Result "1-0"]
[WhiteElo "2804"]
[BlackElo "2537"]
[TimeControl "180+1"]
[EndTime "10:27:42 PDT"]
[Termination "tigra won by checkmate"]

1. e4 {[%clk 0:03:00.9]} 1... c6 {[%clk 0:02:58.4]} 2. d4 {[%clk 0:03:00.1]}
2... d5 {[%clk 0:02:59]} 3. e5 {[%clk 0:03:00.6]} 3... Bf5 {[%clk 0:02:59]} 4.
c4 {[%clk 0:02:59.1]} 4... e6 {[%clk 0:02:58.5]} 5. Nc3 {[%clk 0:02:59]} 5...
Bb4 {[%clk 0:02:58.6]} 6. Ne2 {[%clk 0:02:52.4]} 6... dxc4 {[%clk 0:02:34.6]} 7.
Ng3 {[%clk 0:02:51.9]} 7... Bd3 {[%clk 0:02:35.2]} 8. Bxd3 {[%clk 0:02:51.7]}
8... cxd3 {[%clk 0:02:36.1]} 9. Qxd3 {[%clk 0:02:39.6]} 9... Nd7 {[%clk
0:02:36]} 10. O-O {[%clk 0:02:38.5]} 10... Ne7 {[%clk 0:02:35.8]} 11. Nce4
{[%clk 0:02:38.4]} 11... Nxe5 {[%clk 0:02:30.4]} 12. Qb3 {[%clk 0:02:32.4]}
12... Qxd4 {[%clk 0:02:30.6]} 13. Be3 {[%clk 0:02:32]} 13... Qc4 {[%clk
0:02:28.3]} 14. Qa4 {[%clk 0:02:23.4]} 14... Qb5 {[%clk 0:02:25.3]} 15. Qb3
{[%clk 0:02:20.9]} 15... Nd5 {[%clk 0:02:18.5]} 16. Bd4 {[%clk 0:02:16]} 16...
f6 {[%clk 0:02:15.9]} 17. Bxe5 {[%clk 0:02:11.5]} 17... fxe5 {[%clk 0:02:16.8]}
18. Nh5 {[%clk 0:01:47.9]} 18... O-O {[%clk 0:02:15.5]} 19. Qg3 {[%clk
0:01:47.3]} 19... g6 {[%clk 0:02:09.2]} 20. Qg4 {[%clk 0:01:03.9]} 20... Rae8
{[%clk 0:02:08.5]} 21. a3 {[%clk 0:01:01.3]} 21... Bc5 {[%clk 0:02:02.9]} 22.
Nxc5 {[%clk 0:00:46.9]} 22... Qxc5 {[%clk 0:02:03.8]} 23. Rae1 {[%clk
0:00:46.4]} 23... Kh8 {[%clk 0:01:58.6]} 24. Ng3 {[%clk 0:00:44.5]} 24... Nf4
{[%clk 0:01:58.2]} 25. Ne4 {[%clk 0:00:42.8]} 25... Qd4 {[%clk 0:01:53.3]} 26.
b3 {[%clk 0:00:41.4]} 26... Qb2 {[%clk 0:01:51.6]} 27. g3 {[%clk 0:00:39.6]}
27... Nh5 {[%clk 0:01:46.1]} 28. Nc5 {[%clk 0:00:37.3]} 28... Nf6 {[%clk
0:01:36.1]} 29. Qc4 {[%clk 0:00:34.8]} 29... Qd4 {[%clk 0:01:33.2]} 30. Nxb7
{[%clk 0:00:29.3]} 30... Qxc4 {[%clk 0:01:29]} 31. bxc4 {[%clk 0:00:30.2]} 31...
Nd7 {[%clk 0:01:29.9]} 32. Rd1 {[%clk 0:00:28.2]} 32... Nb6 {[%clk 0:01:28]} 33.
c5 {[%clk 0:00:26.3]} 33... Nd5 {[%clk 0:01:28.1]} 34. Na5 {[%clk 0:00:26.1]}
34... Rc8 {[%clk 0:01:27.3]} 35. Rfe1 {[%clk 0:00:25.9]} 35... Rf3 {[%clk
0:01:22.7]} 36. Nc4 {[%clk 0:00:25.7]} 36... e4 {[%clk 0:01:21.9]} 37. Nd6
{[%clk 0:00:18.2]} 37... Rcf8 {[%clk 0:01:21.8]} 38. Nxe4 {[%clk 0:00:17.6]}
38... Rxa3 {[%clk 0:01:20.7]} 39. Ng5 {[%clk 0:00:17.9]} 39... Ra2 {[%clk
0:01:17.1]} 40. f4 {[%clk 0:00:18.3]} 40... Rb8 {[%clk 0:01:09.5]} 41. Rb1
{[%clk 0:00:18.6]} 41... Rxb1 {[%clk 0:00:59.2]} 42. Rxb1 {[%clk 0:00:19.5]}
42... a5 {[%clk 0:01:00.1]} 43. Rb8+ {[%clk 0:00:17.7]} 43... Kg7 {[%clk
0:01:00.2]} 44. Rb7+ {[%clk 0:00:18.6]} 44... Kf6 {[%clk 0:00:59.8]} 45. Rf7#
{[%clk 0:00:17.6]} 1-0

[Event "*** Titled Tuesday Blitz"]
[Site "Chess.com"]
[Date "2020.04.14"]
[Round "3"]
[White "Mikhail_Golubev"]
[Black "Luibov_AN"]
[Result "1-0"]
[WhiteElo "2515"]
[BlackElo "2177"]
[TimeControl "180+1"]
[EndTime "10:27:43 PDT"]
[Termination "Mikhail_Golubev won by resignation"]

1. e4 {[%clk 0:03:00.9]} 1... g6 {[%clk 0:02:59.3]} 2. d4 {[%clk 0:03:00.2]}
2... Bg7 {[%clk 0:02:59.6]} 3. c3 {[%clk 0:03:00.3]} 3... c5 {[%clk 0:03:00.1]}
4. dxc5 {[%clk 0:02:53.5]} 4... Nc6 {[%clk 0:02:59.8]} 5. Nf3 {[%clk 0:02:44.1]}
5... Qa5 {[%clk 0:02:53.8]} 6. Be3 {[%clk 0:02:39.4]} 6... Nf6 {[%clk 0:02:52]}
7. Nbd2 {[%clk 0:01:54.4]} 7... Ng4 {[%clk 0:02:48]} 8. Bd4 {[%clk 0:01:52.5]}
8... e5 {[%clk 0:02:35.3]} 9. Nc4 {[%clk 0:01:50]} 9... Qc7 {[%clk 0:02:28.7]}
10. Nd6+ {[%clk 0:01:48.3]} 10... Kf8 {[%clk 0:02:28.5]} 11. Be3 {[%clk
0:00:55.8]} 11... Nxe3 {[%clk 0:02:27.6]} 12. fxe3 {[%clk 0:00:55.8]} 12... a5
{[%clk 0:02:18.8]} 13. Bc4 {[%clk 0:00:53.1]} 13... Nd8 {[%clk 0:02:18.1]} 14.
b4 {[%clk 0:00:46.8]} 14... h6 {[%clk 0:02:09.4]} 15. O-O {[%clk 0:00:45.2]}
15... b6 {[%clk 0:02:01.2]} 16. Nh4 {[%clk 0:00:42.2]} 16... Kg8 {[%clk
0:01:51.4]} 17. Nxf7 {[%clk 0:00:38.7]} 17... Kh7 {[%clk 0:01:42.9]} 18. Qg4
{[%clk 0:00:29.5]} 18... d5 {[%clk 0:00:55.3]} 19. Qxg6+ {[%clk 0:00:22.5]}
19... Kg8 {[%clk 0:00:54.8]} 20. Bxd5 {[%clk 0:00:18.4]} 20... Be6 {[%clk
0:00:43.4]} 21. Bxe6 {[%clk 0:00:17.2]} 21... Nxe6 {[%clk 0:00:43.2]} 22. Qxe6
{[%clk 0:00:17.1]} 22... Qxf7 {[%clk 0:00:43.1]} 23. Qxf7+ {[%clk 0:00:16.7]}
23... Kh7 {[%clk 0:00:43.4]} 24. Qg6+ {[%clk 0:00:16.6]} 24... Kg8 {[%clk
0:00:43.5]} 25. Qf7+ {[%clk 0:00:14.7]} 25... Kh7 {[%clk 0:00:43.4]} 26. Qf5+
{[%clk 0:00:13.9]} 26... Kg8 {[%clk 0:00:43.3]} 27. Ng6 {[%clk 0:00:14.1]} 27...
Re8 {[%clk 0:00:38.3]} 28. Qf7+ {[%clk 0:00:12.8]} 28... Kh7 {[%clk 0:00:38.5]}
29. Qf5 {[%clk 0:00:12.6]} 29... Kg8 {[%clk 0:00:37.8]} 30. Rad1 {[%clk
0:00:11.7]} 1-0

[Event "*** Titled Tuesday Blitz"]
[Site "Chess.com"]
[Date "2020.04.14"]
[Round "3"]
[White "CakeinSpace2002"]
[Black "juniortay"]
[Result "1-0"]
[WhiteElo "2214"]
[BlackElo "2457"]
[TimeControl "180+1"]
[EndTime "10:27:43 PDT"]
[Termination "CakeinSpace2002 won by resignation"]

1. e4 {[%clk 0:03:00.9]} 1... e5 {[%clk 0:02:59.8]} 2. Nf3 {[%clk 0:03:00.7]}
2... Nf6 {[%clk 0:03:00]} 3. Nxe5 {[%clk 0:02:57.2]} 3... Nc6 {[%clk 0:03:00.5]}
4. Nxc6 {[%clk 0:02:54.2]} 4... dxc6 {[%clk 0:03:01.4]} 5. d3 {[%clk 0:02:53.9]}
5... Bc5 {[%clk 0:03:01.4]} 6. Be2 {[%clk 0:02:53.1]} 6... h5 {[%clk 0:03:01.2]}
7. Nc3 {[%clk 0:02:48.7]} 7... Ng4 {[%clk 0:03:01.1]} 8. Bxg4 {[%clk 0:02:39.7]}
8... hxg4 {[%clk 0:03:02]} 9. Be3 {[%clk 0:02:37.3]} 9... Bxe3 {[%clk
0:03:00.8]} 10. fxe3 {[%clk 0:02:36.3]} 10... Qg5 {[%clk 0:03:00.6]} 11. Qe2
{[%clk 0:02:35.2]} 11... Be6 {[%clk 0:03:01.1]} 12. O-O-O {[%clk 0:02:34.2]}
12... O-O-O {[%clk 0:03:01.6]} 13. Kb1 {[%clk 0:02:33.9]} 13... Qa5 {[%clk
0:03:00.8]} 14. a3 {[%clk 0:02:32.6]} 14... b5 {[%clk 0:03:00.5]} 15. Qd2 {[%clk
0:02:24.7]} 15... b4 {[%clk 0:02:57.5]} 16. axb4 {[%clk 0:02:23.4]} 16... Qxb4
{[%clk 0:02:56.6]} 17. Ne2 {[%clk 0:02:22.4]} 17... Qa4 {[%clk 0:02:53.5]} 18.
b3 {[%clk 0:02:18.5]} 18... Qa6 {[%clk 0:02:46.3]} 19. Qc3 {[%clk 0:02:17.1]}
19... f6 {[%clk 0:02:37.3]} 20. Kb2 {[%clk 0:02:05]} 20... Rh5 {[%clk
0:02:34.2]} 21. Ra1 {[%clk 0:02:03]} 21... Qb6 {[%clk 0:02:34.3]} 22. Nf4 {[%clk
0:02:01.9]} 22... Rc5 {[%clk 0:02:31.6]} 23. Qd2 {[%clk 0:01:39]} 23... Bf7
{[%clk 0:02:19.6]} 24. Ra3 {[%clk 0:01:30.7]} 24... Kb7 {[%clk 0:01:43.2]} 25.
Rha1 {[%clk 0:01:27.5]} 25... Ra8 {[%clk 0:01:43.1]} 26. Ne2 {[%clk 0:01:15.3]}
26... Rh5 {[%clk 0:01:30.3]} 27. Ra4 {[%clk 0:01:02.8]} 27... c5 {[%clk
0:01:26.7]} 28. Nc3 {[%clk 0:00:49.9]} 28... Rxh2 {[%clk 0:01:19.6]} 29. Ra5
{[%clk 0:00:47.4]} 29... c6 {[%clk 0:01:08.7]} 30. Na4 {[%clk 0:00:45.2]} 30...
Rxg2 {[%clk 0:01:00.1]} 31. Nxb6 {[%clk 0:00:40.2]} 31... Rxd2 {[%clk
0:00:57.7]} 32. Nxa8 {[%clk 0:00:39.9]} 32... Be6 {[%clk 0:00:22]} 33. Rxa7+
{[%clk 0:00:38.4]} 33... Kc8 {[%clk 0:00:22.9]} 34. Nb6+ {[%clk 0:00:37.9]}
34... Kd8 {[%clk 0:00:22.4]} 35. Rxg7 {[%clk 0:00:33.9]} 35... Rg2 {[%clk
0:00:21.2]} 36. Ra8+ {[%clk 0:00:32.4]} 1-0

[Event "*** Titled Tuesday Blitz"]
[Site "Chess.com"]
[Date "2020.04.14"]
[Round "3"]
[White "icychess54"]
[Black "Olga_Girya"]
[Result "0-1"]
[WhiteElo "2212"]
[BlackElo "2472"]
[TimeControl "180+1"]
[EndTime "10:27:44 PDT"]
[Termination "Olga_Girya won on time"]

1. c4 {[%clk 0:03:00.9]} 1... c6 {[%clk 0:02:58]} 2. Nf3 {[%clk 0:03:01.1]} 2...
d5 {[%clk 0:02:57.9]} 3. e3 {[%clk 0:03:01.6]} 3... Nf6 {[%clk 0:02:57.5]} 4.
Nc3 {[%clk 0:03:02]} 4... e6 {[%clk 0:02:56.9]} 5. b3 {[%clk 0:03:01.8]} 5...
Bd6 {[%clk 0:02:55.8]} 6. Bb2 {[%clk 0:03:01.9]} 6... O-O {[%clk 0:02:49.9]} 7.
Be2 {[%clk 0:03:02.2]} 7... e5 {[%clk 0:02:48.6]} 8. O-O {[%clk 0:03:01.9]} 8...
a6 {[%clk 0:02:36.2]} 9. a4 {[%clk 0:02:40]} 9... Nbd7 {[%clk 0:02:34.2]} 10. a5
{[%clk 0:02:39.3]} 10... e4 {[%clk 0:02:27.8]} 11. Nd4 {[%clk 0:02:37.5]} 11...
Ne5 {[%clk 0:02:27.8]} 12. f4 {[%clk 0:02:32.2]} 12... exf3 {[%clk 0:02:26.7]}
13. Nxf3 {[%clk 0:02:31.7]} 13... Re8 {[%clk 0:02:00.7]} 14. Na4 {[%clk
0:02:18.6]} 14... dxc4 {[%clk 0:01:32.6]} 15. Nb6 {[%clk 0:02:03.1]} 15... Rb8
{[%clk 0:01:27.8]} 16. Nxc4 {[%clk 0:01:44.6]} 16... Nxc4 {[%clk 0:01:22.8]} 17.
Bxc4 {[%clk 0:01:45.5]} 17... Nd5 {[%clk 0:01:07.6]} 18. Qc2 {[%clk 0:01:00.2]}
18... Bg4 {[%clk 0:01:00.4]} 19. Nd4 {[%clk 0:00:47.1]} 19... Bh5 {[%clk
0:00:48.3]} 20. Nf5 {[%clk 0:00:43.1]} 20... Bg6 {[%clk 0:00:48.1]} 21. Bxg7
{[%clk 0:00:19.5]} 21... Bxf5 {[%clk 0:00:38.5]} 22. Qxf5 {[%clk 0:00:19.5]}
22... Kxg7 {[%clk 0:00:38.9]} 23. Bd3 {[%clk 0:00:17]} 23... Qh4 {[%clk
0:00:34.6]} 24. Qxf7+ {[%clk 0:00:17]} 24... Kh8 {[%clk 0:00:34.5]} 25. Rf3
{[%clk 0:00:14]} 25... Qxh2+ {[%clk 0:00:32]} 26. Kf2 {[%clk 0:00:13.6]} 26...
Rf8 {[%clk 0:00:31.8]} 27. Qd7 {[%clk 0:00:06.5]} 27... Bg3+ {[%clk 0:00:31]}
28. Ke2 {[%clk 0:00:01.5]} 28... Qxg2+ {[%clk 0:00:31.1]} 0-1